fUST/lending_fUST_20240528
["ID","MTS","AMOUNT","RATE_DAILY","PERIOD"]
[328062131,1716828654928,-504.63,0.00027397,4]
[328062132,1716828654938,-521.924418,0.00027397,4]
[328062133,1716828654947,-500.0,0.00027397,4]
[328062134,1716828655032,-500.0,0.00027397,4]
[328062135,1716828655043,-617.72,0.00027397,4]
[328062136,1716828655053,-1823.06,0.00027397,4]
[328062137,1716828655062,-601.37,0.00027397,4]
[328062138,1716828655071,-505.83225988,0.00027397,4]
[328062139,1716828655080,-500.0,0.00027397,4]
[328062140,1716828655089,-500.0,0.00027397,4]
[328062141,1716828655099,-500.0,0.00027397,4]
[328062142,1716828655108,-500.0,0.00027397,4]
[328062143,1716828655117,-2675.35,0.00027397,4]
[328062144,1716828655127,-510.47593256,0.00027397,4]
[328062145,1716828655136,-500.0,0.00027397,4]
[328062146,1716828655146,-815.6,0.00027397,4]
[328062147,1716828655155,-500.0,0.00027397,4]
[328062148,1716828655164,-1132.79,0.00027397,4]
[328062149,1716828655174,-596.2,0.00027397,4]
[328062150,1716828655183,-500.0,0.00027397,4]
[328062151,1716828655193,-538.86535948,0.00027397,4]
[328062152,1716828655202,-536.32844869,0.00027397,4]
[328062153,1716828655211,-500.0,0.00027397,4]
[328062154,1716828655220,-500.0,0.00027397,4]
[328062155,1716828655230,-504.28992237,0.00027397,4]
[328062156,1716828655239,-500.0,0.00027397,4]
[328062157,1716828655249,-500.0,0.00027397,4]
[328062158,1716828655258,-590.27968096,0.00027397,4]
[328062159,1716828655268,-500.0,0.00027397,4]
[328062160,1716828655278,-500.0,0.00027397,4]
[328062161,1716828655288,-502.12123615,0.00027397,4]
[328062162,1716828655299,-500.0,0.00027397,4]
[328062163,1716828655309,-669.54,0.00027397,4]
[328062164,1716828655318,-606.63,0.00027397,4]
[328062165,1716828655328,-500.0,0.00027397,4]
[328062166,1716828655338,-520.56734642,0.00027397,4]
[328062167,1716828655347,-500.0,0.00027397,4]
[328062168,1716828655357,-500.0,0.00027397,4]
[328062169,1716828655366,-500.0,0.00027397,4]
[328062170,1716828655375,-500.0,0.00027397,4]
[328062171,1716828655384,-500.0,0.00027397,4]
[328062172,1716828655393,-500.0,0.00027397,4]
[328062173,1716828655403,-522.54485254,0.00027397,4]
[328062174,1716828655413,-500.0,0.00027397,4]
[328062175,1716828655423,-1859.98,0.00027397,4]
[328062176,1716828655432,-500.0,0.00027397,4]
[328062177,1716828655441,-385.57975827,0.00027397,4]
[328062178,1716828655450,-500.0,0.00027397,4]
[328062179,1716828655459,-500.0,0.00027397,4]
[328062180,1716828655469,-513.88407901,0.00027397,4]
[328062181,1716828655479,-333.68183347,0.00027397,4]
[328062182,1716828655488,-635.49720201,0.00027397,4]
[328062183,1716828655497,-511.05362512,0.00027397,4]
[328062184,1716828655507,-500.0,0.00027397,4]
[328062185,1716828655516,-503.31757868,0.00027397,4]
[328062186,1716828655525,-500.0,0.00027397,4]
[328062187,1716828655534,-945.57,0.00027397,4]
[328062188,1716828655544,-500.0,0.00027397,4]
[328062189,1716828655554,-500.0,0.00027397,4]
[328062190,1716828655563,-1646.07,0.00027397,4]
[328062191,1716828655572,-500.0,0.00027397,4]
[328062192,1716828655582,-500.0,0.00027397,4]
[328062193,1716828655591,-500.0,0.00027397,4]
[328062194,1716828655600,-166.74275503,0.00027397,4]
[328062195,1716828655610,-500.0,0.00027397,4]
[328062196,1716828655620,-500.0,0.00027397,4]
[328062197,1716828655629,-1314.05,0.00027397,4]
[328062198,1716828655637,-1314.05,0.00027397,4]
[328062199,1716828655646,-500.0,0.00027397,4]
[328062200,1716828655655,-1314.05,0.00027397,4]
[328062201,1716828655665,-1314.05,0.00027397,4]
[328062202,1716828655674,-250.0,0.00027397,4]
[328062203,1716828655684,-1314.05,0.00027397,4]
[328062204,1716828655693,-638.7,0.00027397,4]
[328062205,1716828655704,-1314.05,0.00027397,4]
[328062206,1716828655714,-1314.05,0.00027397,4]
[328062207,1716828655723,-1314.05,0.00027397,4]
[328062208,1716828655732,-1314.05,0.00027397,4]
[328062209,1716828655742,-1314.05,0.00027397,4]
[328062210,1716828655751,-1314.05,0.00027397,4]
[328062211,1716828655763,-1314.05,0.00027397,4]
[328062212,1716828655773,-1314.05,0.00027397,4]
[328062213,1716828655782,-1314.05,0.00027397,4]
[328062214,1716828655791,-1314.05,0.00027397,4]
[328062215,1716828655801,-1314.05,0.00027397,4]
[328062216,1716828655810,-1314.05,0.00027397,4]
[328062217,1716828655819,-1314.05,0.00027397,4]
[328062218,1716828655829,-1314.05,0.00027397,4]
[328062219,1716828655839,-1314.05,0.00027397,4]
[328062220,1716828655850,-1314.05,0.00027397,4]
[328062221,1716828655860,-1314.05,0.00027397,4]
[328062222,1716828655869,-1314.05,0.00027397,4]
[328062223,1716828655878,-1314.09433749,0.00027397,4]
[328062224,1716828655887,-507.05650194,0.00027397,4]
[328062225,1716828655897,-500.0,0.00027397,4]
[328062226,1716828655906,-574.14,0.00027397,4]
[328062227,1716828655915,-282.91790645,0.00027397,4]
[328062228,1716828655925,-512.90118025,0.00027397,4]
[328062229,1716828655935,-503.62096271,0.00027397,4]
[328062230,1716828655944,-500.0,0.00027397,4]
[328062231,1716828655953,-2360.67,0.00027397,4]
[328062232,1716828655964,-506.32635485,0.00027397,4]
[328062233,1716828655974,-569.80137676,0.00027397,4]
[328062234,1716828655983,-500.0,0.00027397,4]
[328062235,1716828655992,-500.0,0.00027397,4]
[328062236,1716828656002,-1074.44,0.00027397,4]
[328062237,1716828656012,-509.88895174,0.00027397,4]
[328062238,1716828656021,-921.35,0.00027397,4]
[328062239,1716828656030,-510.77465084,0.00027397,4]
[328062240,1716828656040,-576.69,0.00027397,4]
[328062241,1716828656050,-500.0,0.00027397,4]
[328062242,1716828656060,-1212.06,0.00027397,4]
[328062243,1716828656070,-513.65305465,0.00027397,4]
[328062244,1716828656079,-12483.57,0.00027397,4]
[328062245,1716828656089,-500.0,0.00027397,4]
[328062246,1716828656098,-528.21,0.00027397,4]
[328062247,1716828656107,-500.0,0.00027397,4]
[328062248,1716828656116,-500.0,0.00027397,4]
[328062249,1716828656126,-263.93697845,0.00027397,4]
[328062250,1716828656135,-4663.86,0.00027397,4]
[328062251,1716828656144,-4663.86,0.00027397,4]
[328062252,1716828656153,-4663.86,0.00027397,4]
[328062253,1716828656162,-4663.86,0.00027397,4]
[328062254,1716828656171,-1012.48,0.00027397,4]
[328062255,1716828656251,-4663.86,0.00027397,4]
[328062256,1716828656261,-500.0,0.00027397,4]
[328062257,1716828656270,-4663.86,0.00027397,4]
[328062258,1716828656279,-4663.86,0.00027397,4]
[328062259,1716828656288,-4663.86,0.00027397,4]
[328062260,1716828656297,-500.0,0.00027397,4]
[328062261,1716828656306,-511.30790826,0.00027397,4]
[328062262,1716828656315,-4663.86,0.00027397,4]
[328062263,1716828656324,-4663.86,0.00027397,4]
[328062264,1716828656334,-4663.86,0.00027397,4]
[328062265,1716828656344,-4663.86,0.00027397,4]
[328062266,1716828656353,-4663.86,0.00027397,4]
[328062267,1716828656363,-4663.86,0.00027397,4]
[328062268,1716828656372,-535.05094632,0.00027397,4]
[328062269,1716828656381,-4663.86,0.00027397,4]
[328062270,1716828656391,-4663.86,0.00027397,4]
[328062271,1716828656401,-4663.86,0.00027397,4]
[328062272,1716828656410,-4663.86,0.00027397,4]
[328062273,1716828656419,-4663.86,0.00027397,4]
[328062274,1716828656428,-4663.86,0.00027397,4]
[328062275,1716828656437,-536.72352896,0.00027397,4]
[328062276,1716828656447,-4663.86,0.00027397,4]
[328062277,1716828656455,-4663.86,0.00027397,4]
[328062278,1716828656464,-773.35,0.00027397,4]
[328062279,1716828656473,-4663.86,0.00027397,4]
[328062280,1716828656482,-4664.07503612,0.00027397,4]
[328062281,1716828656491,-500.0,0.00027397,4]
[328062282,1716828656500,-503.52104586,0.00027397,4]
[328062283,1716828656509,-544.22347528,0.00027397,4]
[328062284,1716828656519,-910.69,0.00027397,4]
[328062285,1716828656528,-500.0,0.00027397,4]
[328062286,1716828656537,-500.0,0.00027397,4]
[328062287,1716828656548,-500.0,0.00027397,4]
[328062288,1716828656557,-704.47,0.00027397,4]
[328062289,1716828656567,-500.0,0.00027397,4]
[328062290,1716828656576,-790.95,0.00027397,4]
[328062291,1716828656585,-517.98879465,0.00027397,4]
[328062292,1716828656594,-1000.0,0.00027397,4]
[328062293,1716828656603,-500.0,0.00027397,4]
[328062294,1716828656612,-500.0,0.00027397,4]
[328062295,1716828656622,-500.0,0.00027397,4]
[328062296,1716828656631,-500.0,0.00027397,4]
[328062297,1716828656640,-500.0,0.00027397,4]
[328062298,1716828656649,-814.71,0.00027397,4]
[328062299,1716828656658,-2637.19,0.00027397,4]
[328062300,1716828656667,-500.0,0.00027397,4]
[328062301,1716828656676,-500.0,0.00027397,4]
[328062302,1716828656685,-500.0,0.00027397,4]
[328062303,1716828656695,-500.0,0.00027397,4]
[328062304,1716828656704,-736.82,0.00027397,4]
[328062305,1716828656713,-952.11,0.00027397,4]
[328062306,1716828656722,-577.76499289,0.00027397,4]
[328062307,1716828656731,-500.0,0.00027397,4]
[328062308,1716828656740,-500.0,0.00027397,4]
[328062309,1716828656749,-500.0,0.00027397,4]
[328062310,1716828656767,-500.0,0.00027397,4]
[328062311,1716828656787,-529.54,0.00027397,4]
[328062312,1716828656807,-500.0,0.00027397,4]
[328062313,1716828656826,-576.92,0.00027397,4]
[328062314,1716828656848,-500.0,0.00027397,4]
[328062315,1716828656866,-594.73,0.00027397,4]
[328062316,1716828656884,-500.0,0.00027397,4]
[328062317,1716828656899,-500.0,0.00027397,4]
[328062318,1716828656916,-500.0,0.00027397,4]
[328062319,1716828656933,-669.39,0.00027397,4]
[328062320,1716828656952,-1352.61,0.00027397,4]
[328062321,1716828656965,-500.0,0.00027397,4]
[328062322,1716828656979,-562.4,0.00027397,4]
[328062323,1716828656996,-667.65,0.00027397,4]
[328062324,1716828657011,-3442.49,0.00027397,4]
[328062325,1716828657025,-260.44947731,0.00027397,4]
[328062326,1716828657039,-264.03671458,0.00027397,4]
[328062327,1716828657053,-500.0,0.00027397,4]
[328062328,1716828657069,-500.0,0.00027397,4]
[328062329,1716828657084,-517.33088508,0.00027397,4]
[328062330,1716828657097,-500.0,0.00027397,4]
[328062331,1716828657112,-500.0,0.00027397,4]
[328062332,1716828657127,-500.0,0.00027397,4]
[328062333,1716828657140,-545.0458689,0.00027397,4]
[328062334,1716828657155,-514.94297477,0.00027397,4]
[328062335,1716828657169,-506.97160517,0.00027397,4]
[328062336,1716828657184,-300.0,0.00027397,4]
[328062337,1716828657198,-508.32551252,0.00027397,4]
[328062338,1716828657212,-500.0,0.00027397,4]
[328062339,1716828657228,-550.83,0.00027397,4]
[328062340,1716828657242,-500.0,0.00027397,4]
[328062341,1716828657257,-500.0,0.00027397,4]
[328062342,1716828657270,-1000.0,0.00027397,4]
[328062343,1716828657285,-776.28,0.00027397,4]
[328062344,1716828657301,-3257.38,0.00027397,4]
[328062345,1716828657315,-2136.16,0.00027397,4]
[328062346,1716828657329,-2740.36,0.00027397,4]
[328062347,1716828657343,-509.00083593,0.00027397,4]
[328062348,1716828657358,-1654.94,0.00027397,4]
[328062349,1716828657371,-554.59,0.00027397,4]
[328062350,1716828657386,-500.0,0.00027397,4]
[328062351,1716828657400,-500.0,0.00027397,4]
[328062352,1716828657414,-500.0,0.00027397,4]
[328062353,1716828657428,-500.0,0.00027397,4]
[328062354,1716828657442,-500.0,0.00027397,4]
[328062355,1716828657456,-500.0,0.00027397,4]
[328062356,1716828657470,-500.0,0.00027397,4]
[328062357,1716828657485,-153.53043472,0.00027397,4]
[328062358,1716828657498,-500.0,0.00027397,4]
[328062359,1716828657513,-500.0,0.00027397,4]
[328062360,1716828657527,-500.0,0.00027397,4]
[328062361,1716828657541,-500.0,0.00027397,4]
[328062362,1716828657555,-500.0,0.00027397,4]
[328062363,1716828657570,-500.0,0.00027397,4]
[328062364,1716828657584,-500.0,0.00027397,4]
[328062365,1716828657598,-500.0,0.00027397,4]
[328062366,1716828657711,-1514.86,0.00027397,4]
[328062367,1716828657720,-500.0,0.00027397,4]
[328062368,1716828657729,-500.0,0.00027397,4]
[328062369,1716828657739,-500.0,0.00027397,4]
[328062370,1716828657749,-500.0,0.00027397,4]
[328062371,1716828657759,-500.0,0.00027397,4]
[328062372,1716828657771,-500.0,0.00027397,4]
[328062373,1716828657781,-500.0,0.00027397,4]
[328062374,1716828657790,-500.0,0.00027397,4]
[328062375,1716828657803,-500.0,0.00027397,4]
[328062376,1716828657812,-500.0,0.00027397,4]
[328062377,1716828657821,-500.0,0.00027397,4]
[328062378,1716828657830,-500.0,0.00027397,4]
[328062379,1716828657840,-500.0,0.00027397,4]
[328062380,1716828657849,-481.9825674,0.00027397,4]
[328062381,1716828657858,-500.0,0.00027397,4]
[328062382,1716828657867,-500.0,0.00027397,4]
[328062383,1716828657876,-500.0,0.00027397,4]
[328062384,1716828657885,-500.0,0.00027397,4]
[328062385,1716828657895,-499.76240109,0.00027397,4]
[328062386,1716828657905,-500.0,0.00027397,4]
[328062387,1716828657914,-500.0,0.00027397,4]
[328062388,1716828657924,-1050.35,0.00027397,4]
[328062389,1716828657933,-500.0,0.00027397,4]
[328062390,1716828657942,-500.0,0.00027397,4]
[328062391,1716828657951,-500.0,0.00027397,4]
[328062392,1716828657960,-529.78831264,0.00027397,4]
[328062393,1716828657969,-500.0,0.00027397,4]
[328062394,1716828657978,-892.42,0.00027397,4]
[328062395,1716828657988,-500.0,0.00027397,4]
[328062396,1716828657997,-500.0,0.00027397,4]
[328062397,1716828658006,-500.0,0.00027397,4]
[328062398,1716828658016,-500.0,0.00027397,4]
[328062399,1716828658025,-500.0,0.00027397,4]
[328062400,1716828658034,-500.0,0.00027397,4]
[328062401,1716828658046,-500.0,0.00027397,4]
[328062402,1716828658055,-500.0,0.00027397,4]
[328062403,1716828658064,-500.0,0.00027397,4]
[328062404,1716828658073,-500.0,0.00027397,4]
[328062405,1716828658082,-208.3722547,0.00027397,4]
[328062406,1716828658091,-500.0,0.00027397,4]
[328062407,1716828658101,-500.0,0.00027397,4]
[328062408,1716828658110,-500.0,0.00027397,4]
[328062409,1716828658120,-514.7739127,0.00027397,4]
[328062410,1716828658129,-500.0,0.00027397,4]
[328062411,1716828658138,-500.0,0.00027397,4]
[328062412,1716828658147,-500.0,0.00027397,2]
[328062413,1716828658157,-1363.75,0.00027397,4]
[328062414,1716828658166,-500.0,0.00027397,4]
[328062415,1716828658175,-651.97,0.00027397,4]
[328062416,1716828658184,-500.0,0.00027397,4]
[328062417,1716828658193,-506.10251006,0.00027397,4]
[328062418,1716828658202,-593.66,0.00027397,4]
[328062419,1716828658212,-1131.43,0.00027397,4]
[328062420,1716828658221,-539.52,0.00027397,4]
[328062421,1716828658231,-500.0,0.00027397,4]
[328062422,1716828658239,-500.0,0.00027397,4]
[328062423,1716828658249,-500.0,0.00027397,4]
[328062424,1716828658258,-7625.13,0.00027397,4]
[328062425,1716828658268,-500.0,0.00027397,4]
[328062426,1716828658277,-500.0,0.00027397,4]
[328062427,1716828658286,-500.0,0.00027397,4]
[328062428,1716828658297,-500.0,0.00027397,4]
[328062429,1716828658306,-574.45,0.00027397,4]
[328062430,1716828658315,-1087.57,0.00027397,4]
[328062431,1716828658324,-632.54,0.00027397,4]
[328062432,1716828658333,-6361.41,0.00027397,4]
[328062433,1716828658342,-1312.75,0.00027397,4]
[328062434,1716828658351,-633.72,0.00027397,4]
[328062435,1716828658360,-500.0,0.00027397,4]
[328062436,1716828658369,-500.0,0.00027397,4]
[328062437,1716828658378,-500.0,0.00027397,4]
[328062438,1716828658387,-587.32,0.00027397,4]
[328062439,1716828658396,-642.28,0.00027397,4]
[328062440,1716828658405,-500.0,0.00027397,4]
[328062441,1716828658414,-500.0,0.00027397,4]
[328062442,1716828658423,-4795.75,0.00027397,4]
[328062443,1716828658432,-500.0,0.00027397,4]
[328062444,1716828658441,-500.0,0.00027397,4]
[328062445,1716828658450,-260.60995119,0.00027397,4]
[328062446,1716828658461,-222.58884927,0.00027397,4]
[328062447,1716828658469,-500.0,0.00027397,4]
[328062448,1716828658478,-2064.41,0.00027397,4]
[328062449,1716828658487,-500.0,0.00027397,4]
[328062450,1716828658496,-500.0,0.00027397,4]
[328062451,1716828658506,-500.0,0.00027397,4]
[328062452,1716828658515,-500.0,0.00027397,4]
[328062453,1716828658524,-500.0,0.00027397,4]
[328062454,1716828658533,-507.44068972,0.00027397,4]
[328062455,1716828658542,-500.0,0.00027397,4]
[328062456,1716828658551,-500.0,0.00027397,4]
[328062457,1716828658560,-500.0,0.00027397,4]
[328062458,1716828658569,-500.0,0.00027397,4]
[328062459,1716828658578,-500.0,0.00027397,4]
[328062460,1716828658587,-500.0,0.00027397,4]
[328062461,1716828658596,-500.0,0.00027397,4]
[328062462,1716828658604,-507.99044501,0.00027397,4]
[328062463,1716828658614,-500.0,0.00027397,4]
[328062464,1716828658623,-500.0,0.00027397,4]
[328062465,1716828658631,-517.28659244,0.00027397,4]
[328062466,1716828658641,-500.0,0.00027397,4]
[328062467,1716828658650,-500.0,0.00027397,4]
[328062468,1716828658659,-500.0,0.00027397,4]
[328062469,1716828658668,-500.0,0.00027397,4]
[328062470,1716828658677,-500.0,0.00027397,4]
[328062471,1716828658686,-500.0,0.00027397,4]
[328062472,1716828658697,-572.13980639,0.00027397,4]
[328062473,1716828658706,-500.0,0.00027397,4]
[328062474,1716828658716,-500.0,0.00027397,4]
[328062475,1716828658724,-2566.21,0.00027397,2]
[328062476,1716828658733,-151.0,0.00027397,4]
[328062477,1716828658743,-756.1,0.00027397,4]
[328062478,1716828658752,-500.0,0.00027397,4]
[328062479,1716828658764,-500.0,0.00027397,4]
[328062480,1716828658773,-510.95,0.00027397,4]
[328062481,1716828658782,-801.47,0.00027397,4]
[328062482,1716828658791,-506.82,0.00027397,4]
[328062483,1716828658802,-1002.65,0.00027397,4]
[328062484,1716828658811,-1000.0,0.00027397,2]
[328062485,1716828658820,-204.70642311,0.00027397,4]
[328062486,1716828658829,-500.0,0.00027397,4]
[328062487,1716828658838,-500.0,0.00027397,4]
[328062488,1716828658849,-500.0,0.00027397,4]
[328062489,1716828658859,-155.04197458,0.00027397,4]
[328062490,1716828658868,-625.4,0.00027397,4]
[328062491,1716828658877,-605.1,0.00027397,4]
[328062492,1716828658886,-500.0,0.00027397,2]
[328062493,1716828658895,-500.0,0.00027397,4]
[328062494,1716828658977,-802.98,0.00027397,4]
[328062495,1716828658986,-2197.41,0.00027397,4]
[328062496,1716828658995,-500.0,0.00027397,4]
[328062497,1716828659004,-17023.71,0.00027397,4]
[328062498,1716828659014,-505.72640354,0.00027397,4]
[328062499,1716828659023,-544.16,0.00027397,4]
[328062500,1716828659032,-500.0,0.00027397,4]
[328062501,1716828659042,-879.06,0.00027397,4]
[328062502,1716828659051,-510.93237836,0.00027397,4]
[328062503,1716828659060,-512.70753678,0.00027397,4]
[328062504,1716828659069,-500.0,0.00027397,4]
[328062505,1716828659079,-500.0,0.00027397,4]
[328062506,1716828659088,-500.0,0.00027397,4]
[328062507,1716828659098,-726.78,0.00027397,4]
[328062508,1716828659107,-6977.2,0.00027397,4]
[328062509,1716828659116,-750.83,0.00027397,4]
[328062510,1716828659126,-2138.53,0.00027397,4]
[328062511,1716828659135,-500.0,0.00027397,4]
[328062512,1716828659144,-20833.29,0.00027397,4]
[328062513,1716828659153,-5392.04,0.00027397,4]
[328062514,1716828659162,-510.98341139,0.00027397,4]
[328062515,1716828659171,-500.0,0.00027397,2]
[328062516,1716828659181,-500.0,0.00027397,2]
[328062517,1716828659190,-500.0,0.00027397,2]
[328062518,1716828659199,-500.0,0.00027397,2]
[328062519,1716828659208,-500.0,0.00027397,4]
[328062520,1716828659217,-500.0,0.00027397,2]
[328062521,1716828659226,-500.0,0.00027397,2]
[328062522,1716828659235,-500.0,0.00027397,2]
[328062523,1716828659244,-488.54820331,0.00027397,2]
[328062524,1716828659254,-500.0,0.00027397,2]
[328062525,1716828659263,-500.0,0.00027397,2]
[328062526,1716828659272,-500.0,0.00027397,2]
[328062527,1716828659282,-500.0,0.00027397,4]
[328062528,1716828659292,-500.0,0.00027397,2]
[328062529,1716828659301,-500.0,0.00027397,2]
[328062530,1716828659311,-500.0,0.00027397,2]
[328062531,1716828659321,-500.0,0.00027397,2]
[328062532,1716828659331,-500.0,0.00027397,2]
[328062533,1716828659340,-500.0,0.00027397,4]
[328062534,1716828659349,-500.0,0.00027397,2]
[328062535,1716828659358,-500.0,0.00027397,2]
[328062536,1716828659367,-500.0,0.00027397,2]
[328062537,1716828659377,-500.0,0.00027397,2]
[328062538,1716828659386,-500.0,0.00027397,2]
[328062539,1716828659395,-500.0,0.00027397,2]
[328062540,1716828659404,-504.75674024,0.00027397,4]
[328062541,1716828659413,-263.99523432,0.00027397,4]
[328062542,1716828659423,-500.0,0.00027397,4]
[328062543,1716828659432,-805.12,0.00027397,4]
[328062544,1716828659441,-786.56,0.00027397,4]
[328062545,1716828659450,-500.0,0.00027397,4]
[328062546,1716828659459,-2243.3,0.00027397,4]
[328062547,1716828659468,-500.0,0.00027397,4]
[328062548,1716828659477,-500.0,0.00027397,4]
[328062549,1716828659486,-508.45925511,0.00027397,4]
[328062550,1716828659495,-3657.81,0.00027397,4]
[328062551,1716828659504,-500.0,0.00027397,4]
[328062552,1716828659513,-151.0,0.00027397,2]
[328062553,1716828659522,-151.0,0.00027397,2]
[328062554,1716828659532,-211.979338,0.00027397,2]
[328062555,1716828659541,-151.08854,0.00027397,2]
[328062556,1716828659551,-151.08854,0.00027397,2]
[328062557,1716828659560,-151.08854,0.00027397,2]
[328062558,1716828659570,-151.08854,0.00027397,2]
[328062559,1716828659579,-151.08854,0.00027397,2]
[328062560,1716828659588,-151.08854,0.00027397,2]
[328062561,1716828659597,-151.08854,0.00027397,2]
[328062562,1716828659606,-151.08854,0.00027397,2]
[328062563,1716828659615,-151.08854,0.00027397,2]
[328062564,1716828659625,-151.08854,0.00027397,2]
[328062565,1716828659634,-151.08854,0.00027397,2]
[328062566,1716828659643,-151.08854,0.00027397,2]
[328062567,1716828659653,-151.08854,0.00027397,2]
[328062568,1716828659662,-151.08854,0.00027397,2]
[328062569,1716828659672,-151.08854,0.00027397,2]
[328062570,1716828659681,-151.08854,0.00027397,2]
[328062571,1716828659691,-151.08854,0.00027397,2]
[328062572,1716828659700,-151.08854,0.00027397,2]
[328062573,1716828659710,-151.08854,0.00027397,2]
[328062574,1716828659719,-151.088544,0.00027397,2]
[328062575,1716828659729,-151.0,0.00027397,2]
[328062576,1716828659738,-151.0,0.00027397,2]
[328062577,1716828659749,-151.0,0.00027397,2]
[328062578,1716828659761,-151.0,0.00027397,2]
[328062579,1716828659772,-151.0,0.00027397,2]
[328062580,1716828659781,-273.273863,0.00027397,2]
[328062581,1716828659790,-34971.94761255,0.00027484,2]
[328062582,1716828659806,-198.8343156,0.000275,2]
[328062583,1716828659815,-7806.39122771,0.000275,2]
[328062584,1716828659824,-522.9036307,0.00027592,5]
[328062585,1716828659834,-1628.7012624,0.00027594,2]
[328062586,1716828659844,-150.5,0.00027641,35]
[328062587,1716828659853,-2746.0,0.00027641,35]
[328062588,1716828659863,-150.5,0.00027651,35]
[328062589,1716828659872,-2746.0,0.00027651,35]
[328062590,1716828659881,-154.42348508,0.00027653,2]
[328062591,1716828659891,-150.5,0.00027661,35]
[328062592,1716828659900,-2746.0,0.00027661,35]
[328062593,1716828659910,-220.26527753,0.00027667,2]
[328062594,1716828659919,-500.0,0.00027671,2]
[328062595,1716828659928,-500.0,0.00027671,4]
[328062596,1716828659937,-538.91241684,0.00027671,4]
[328062597,1716828659946,-500.0,0.00027671,4]
[328062598,1716828659956,-500.0,0.00027671,2]
[328062599,1716828659966,-500.0,0.00027671,4]
[328062600,1716828659975,-500.0,0.00027671,4]
[328062601,1716828659984,-500.0,0.00027671,4]
[328062602,1716828659993,-500.0,0.00027671,4]
[328062603,1716828660003,-500.0,0.00027671,2]
[328062604,1716828660012,-824.6,0.00027671,4]
[328062605,1716828660021,-500.0,0.00027671,4]
[328062606,1716828660031,-482.34181686,0.00027671,4]
[328062607,1716828660041,-500.0,0.00027671,4]
[328062608,1716828660055,-522.99049297,0.00027671,4]
[328062609,1716828660065,-500.0,0.00027671,4]
[328062610,1716828660075,-675.69,0.00027671,4]
[328062611,1716828660159,-500.0,0.00027671,4]
[328062612,1716828660170,-1000.0,0.00027671,5]
[328062613,1716828660181,-811.63,0.00027671,4]
[328062614,1716828660190,-500.0,0.00027671,4]
[328062615,1716828660200,-500.0,0.00027671,4]
[328062616,1716828660210,-500.0,0.00027671,4]
[328062617,1716828660220,-508.1961163,0.00027671,4]
[328062618,1716828660230,-726.55,0.00027671,4]
[328062619,1716828660239,-500.0,0.00027671,4]
[328062620,1716828660248,-500.0,0.00027671,4]
[328062621,1716828660258,-514.21900979,0.00027671,4]
[328062622,1716828660267,-507.44659481,0.00027671,4]
[328062623,1716828660276,-500.0,0.00027671,4]
[328062624,1716828660286,-504.92742782,0.00027671,4]
[328062625,1716828660297,-258.81262944,0.00027671,4]
[328062626,1716828660307,-500.0,0.00027671,4]
[328062627,1716828660317,-500.0,0.00027671,4]
[328062628,1716828660327,-500.0,0.00027671,4]
[328062629,1716828660337,-510.33111689,0.00027671,4]
[328062630,1716828660347,-500.0,0.00027671,4]